[Event "Titled Tuesday Blitz January 03 Early 2023"]
[White "De Souza, Cristiano Gomes"]
[Black "Estrada Nieto, Julian"]
[WhiteFideId "2151758"]
[BlackFideId "5101018"]
[WhiteElo "2018"]
[BlackElo "2215"]
[Result "0-1"]
[Round "07"]
[TimeControl "180+2"]
[Date "2023.01.03"]
[WhiteClock "0:00:54"]
[BlackClock "0:01:26"]

1. d4 {[%clk 0:01:37]}  d5 {[%clk 0:02:59]} 2. c4 {[%clk 0:01:35]}  dxc4 {[%clk 0:02:59]} 3. Nf3 {[%clk 0:01:35]}  Nf6 {[%clk 0:03:00]} 4. e3 {[%clk 0:01:35]}  e6 {[%clk 0:03:00]} 5. Bxc4 {[%clk 0:01:35]}  a6 {[%clk 0:03:00]} 6. O-O {[%clk 0:01:35]}  c5 {[%clk 0:02:59]} 7. dxc5 {[%clk 0:01:34]}  Bxc5 {[%clk 0:02:58]} 8. Qxd8+ {[%clk 0:01:34]}  Kxd8 {[%clk 0:02:58]} 9. Nc3 {[%clk 0:01:33]}  b5 {[%clk 0:02:57]} 10. Be2 {[%clk 0:01:33]}  Bb7 {[%clk 0:02:58]} 11. a3 {[%clk 0:01:32]}  Nbd7 {[%clk 0:02:57]} 12. b4 {[%clk 0:01:32]}  Bd6 {[%clk 0:02:58]} 13. Bb2 {[%clk 0:01:32]}  Ke7 {[%clk 0:02:58]} 14. Rfd1 {[%clk 0:01:33]}  Rac8 {[%clk 0:02:51]} 15. Rac1 {[%clk 0:01:32]}  Nb6 {[%clk 0:02:32]} 16. h3 {[%clk 0:01:29]}  Nc4 {[%clk 0:02:29]} 17. Bxc4 {[%clk 0:01:29]}  Rxc4 {[%clk 0:02:30]} 18. Nd4 {[%clk 0:01:27]}  Rhc8 {[%clk 0:02:25]} 19. Nce2 {[%clk 0:01:27]}  Rxc1 {[%clk 0:02:23]} 20. Rxc1 {[%clk 0:01:28]}  Rxc1+ {[%clk 0:02:22]} 21. Bxc1 {[%clk 0:01:29]}  g6 {[%clk 0:02:15]} 22. f3 {[%clk 0:01:28]}  Nd5 {[%clk 0:02:15]} 23. Kf2 {[%clk 0:01:27]}  Nb6 {[%clk 0:02:11]} 24. Nc3 {[%clk 0:01:25]}  Nc4 {[%clk 0:02:09]} 25. Nb3 {[%clk 0:01:19]}  f5 {[%clk 0:02:01]} 26. Nd2 {[%clk 0:01:18]}  Nxd2 {[%clk 0:01:58]} 27. Bxd2 {[%clk 0:01:19]}  e5 {[%clk 0:01:54]} 28. Ke2 {[%clk 0:01:19]}  Ke6 {[%clk 0:01:54]} 29. a4 {[%clk 0:01:10]}  Bxb4 {[%clk 0:01:41]} 30. axb5 {[%clk 0:01:09]}  Bxc3 {[%clk 0:01:40]} 31. Bxc3 {[%clk 0:01:08]}  axb5 {[%clk 0:01:40]} 32. Kd3 {[%clk 0:01:09]}  e4+ {[%clk 0:01:36]} 33. Ke2 {[%clk 0:01:09]}  Kd5 {[%clk 0:01:34]} 34. Bb4 {[%clk 0:01:09]}  Kc4 {[%clk 0:01:34]} 35. Bf8 {[%clk 0:01:08]}  b4 {[%clk 0:01:33]} 36. f4 {[%clk 0:01:08]}  Kc3 {[%clk 0:01:30]} 37. Bg7+ {[%clk 0:01:06]}  Kc2 {[%clk 0:01:29]} 38. g4 {[%clk 0:00:54]}  b3 {[%clk 0:01:26]} 0-1


[Site "https://www.chess.com"]

[Event "Titled Tuesday Blitz January 03 Early 2023"]
[White "Sailer, Mike"]
[Black "Miszler, Levente"]
[WhiteFideId "2012901"]
[BlackFideId "763276"]
[WhiteElo "2109"]
[BlackElo "2271"]
[Result "0-1"]
[Round "07"]
[TimeControl "180+2"]
[Date "2023.01.03"]
[WhiteClock "0:00:20"]
[BlackClock "0:01:04"]

1. d4 {[%clk 0:03:00]}  Nf6 {[%clk 0:02:57]} 2. Bf4 {[%clk 0:03:01]}  h6 {[%clk 0:02:52]} 3. h3 {[%clk 0:02:58]}  g5 {[%clk 0:02:52]} 4. Bh2 {[%clk 0:02:59]}  Bg7 {[%clk 0:02:52]} 5. e3 {[%clk 0:02:59]}  d6 {[%clk 0:02:53]} 6. c4 {[%clk 0:03:00]}  Nbd7 {[%clk 0:02:53]} 7. Nc3 {[%clk 0:03:00]}  e5 {[%clk 0:02:53]} 8. Bd3 {[%clk 0:02:53]}  O-O {[%clk 0:02:51]} 9. Nge2 {[%clk 0:02:53]}  Re8 {[%clk 0:02:50]} 10. O-O {[%clk 0:02:54]}  c6 {[%clk 0:02:42]} 11. Ng3 {[%clk 0:02:50]}  Nf8 {[%clk 0:02:38]} 12. Nf5 {[%clk 0:02:50]}  e4 {[%clk 0:02:33]} 13. Nxg7 {[%clk 0:02:47]}  Kxg7 {[%clk 0:02:34]} 14. Be2 {[%clk 0:02:33]}  Ng6 {[%clk 0:02:33]} 15. b4 {[%clk 0:02:31]}  Nh4 {[%clk 0:02:30]} 16. c5 {[%clk 0:02:25]}  d5 {[%clk 0:02:28]} 17. b5 {[%clk 0:02:26]}  Qd7 {[%clk 0:02:28]} 18. a4 {[%clk 0:02:24]}  Nxg2 {[%clk 0:02:21]} 19. Kxg2 {[%clk 0:02:22]}  Qxh3+ {[%clk 0:02:22]} 20. Kh1 {[%clk 0:02:19]}  Ng4 {[%clk 0:02:21]} 21. Bxg4 {[%clk 0:02:09]}  Bxg4 {[%clk 0:02:22]} 22. f3 {[%clk 0:02:09]}  exf3 {[%clk 0:02:07]} 23. Rf2 {[%clk 0:02:05]}  Rxe3 {[%clk 0:02:05]} 24. Rc1 {[%clk 0:01:47]}  Rae8 {[%clk 0:02:03]} 25. Qf1 {[%clk 0:01:36]}  Qh4 {[%clk 0:01:34]} 26. bxc6 {[%clk 0:01:30]}  bxc6 {[%clk 0:01:33]} 27. Qg1 {[%clk 0:00:57]}  Bh3 {[%clk 0:01:23]} 28. Be5+ {[%clk 0:00:21]}  R8xe5 {[%clk 0:01:21]} 29. Qh2 {[%clk 0:00:22]}  Bg2+ {[%clk 0:01:18]} 30. Rxg2 {[%clk 0:00:21]}  fxg2+ {[%clk 0:01:06]} 31. Kxg2 {[%clk 0:00:20]}  Re2+ {[%clk 0:01:04]} 0-1


[Site "https://www.chess.com"]

[Event "Titled Tuesday Blitz January 03 Early 2023"]
[White "Forgacs, Attila Jr."]
[Black "Klinova, Masha"]
[WhiteFideId "773654"]
[BlackFideId "2802015"]
[WhiteElo "2264"]
[BlackElo "2250"]
[Result "1/2-1/2"]
[Round "07"]
[TimeControl "180+2"]
[Date "2023.01.03"]
[WhiteClock "0:00:11"]
[BlackClock "0:00:22"]

1. e4 {[%clk 0:03:00]}  d6 {[%clk 0:02:59]} 2. d4 {[%clk 0:03:00]}  Nf6 {[%clk 0:03:00]} 3. Nc3 {[%clk 0:03:01]}  g6 {[%clk 0:02:59]} 4. f4 {[%clk 0:03:01]}  Bg7 {[%clk 0:02:59]} 5. Bd3 {[%clk 0:03:01]}  O-O {[%clk 0:02:59]} 6. Nf3 {[%clk 0:03:02]}  Nc6 {[%clk 0:02:59]} 7. e5 {[%clk 0:03:01]}  dxe5 {[%clk 0:02:59]} 8. fxe5 {[%clk 0:03:02]}  Nd5 {[%clk 0:02:59]} 9. Ne4 {[%clk 0:02:59]}  Bg4 {[%clk 0:02:43]} 10. c3 {[%clk 0:02:58]}  f6 {[%clk 0:02:43]} 11. exf6 {[%clk 0:02:54]}  exf6 {[%clk 0:02:43]} 12. O-O {[%clk 0:02:54]}  Nce7 {[%clk 0:02:39]} 13. h3 {[%clk 0:02:53]}  Bc8 {[%clk 0:02:29]} 14. Nc5 {[%clk 0:02:52]}  b6 {[%clk 0:02:27]} 15. Nb3 {[%clk 0:02:51]}  Nf5 {[%clk 0:02:23]} 16. Bc4 {[%clk 0:02:36]}  Kh8 {[%clk 0:02:15]} 17. Qd3 {[%clk 0:02:29]}  Bb7 {[%clk 0:02:08]} 18. Bd2 {[%clk 0:02:25]}  Qd7 {[%clk 0:02:01]} 19. Rae1 {[%clk 0:02:23]}  Rae8 {[%clk 0:02:01]} 20. Nc1 {[%clk 0:02:16]}  Qd6 {[%clk 0:01:57]} 21. Rxe8 {[%clk 0:02:04]}  Rxe8 {[%clk 0:01:56]} 22. Re1 {[%clk 0:02:05]}  Rxe1+ {[%clk 0:01:48]} 23. Bxe1 {[%clk 0:02:06]}  Nfe3 {[%clk 0:01:33]} 24. Bxd5 {[%clk 0:02:02]}  Nxd5 {[%clk 0:01:31]} 25. Qe2 {[%clk 0:02:02]}  Qe7 {[%clk 0:01:30]} 26. Qxe7 {[%clk 0:01:59]}  Nxe7 {[%clk 0:01:30]} 27. Nd3 {[%clk 0:01:59]}  h5 {[%clk 0:01:29]} 28. Bg3 {[%clk 0:01:59]}  c6 {[%clk 0:01:23]} 29. Kf2 {[%clk 0:01:55]}  Nd5 {[%clk 0:01:18]} 30. Bb8 {[%clk 0:01:52]}  a5 {[%clk 0:01:16]} 31. c4 {[%clk 0:01:46]}  Ne7 {[%clk 0:00:54]} 32. Bc7 {[%clk 0:01:44]}  b5 {[%clk 0:00:54]} 33. cxb5 {[%clk 0:01:41]}  cxb5 {[%clk 0:00:54]} 34. Bxa5 {[%clk 0:01:42]}  Nc6 {[%clk 0:00:54]} 35. Bb6 {[%clk 0:01:36]}  Ne7 {[%clk 0:00:51]} 36. b3 {[%clk 0:01:34]}  Nd5 {[%clk 0:00:51]} 37. Bc5 {[%clk 0:01:34]}  g5 {[%clk 0:00:47]} 38. a4 {[%clk 0:01:31]}  bxa4 {[%clk 0:00:46]} 39. bxa4 {[%clk 0:01:32]}  g4 {[%clk 0:00:45]} 40. Nh4 {[%clk 0:01:30]}  Bh6 {[%clk 0:00:43]} 41. Nf5 {[%clk 0:01:28]}  Bd2 {[%clk 0:00:40]} 42. hxg4 {[%clk 0:01:26]}  hxg4 {[%clk 0:00:39]} 43. Nd6 {[%clk 0:01:19]}  Bc6 {[%clk 0:00:37]} 44. Nc4 {[%clk 0:01:17]}  Bc3 {[%clk 0:00:31]} 45. a5 {[%clk 0:01:16]}  Bb5 {[%clk 0:00:30]} 46. Ncb2 {[%clk 0:01:16]}  Bxa5 {[%clk 0:00:28]} 47. Ne1 {[%clk 0:01:05]}  Kg7 {[%clk 0:00:27]} 48. Nbd3 {[%clk 0:01:02]}  Kg6 {[%clk 0:00:27]} 49. Nc1 {[%clk 0:00:53]}  Kf5 {[%clk 0:00:27]} 50. Ne2 {[%clk 0:00:53]}  Ke4 {[%clk 0:00:25]} 51. Ng3+ {[%clk 0:00:52]}  Kf4 {[%clk 0:00:25]} 52. Ne2+ {[%clk 0:00:49]}  Kg5 {[%clk 0:00:25]} 53. g3 {[%clk 0:00:43]}  Bd2 {[%clk 0:00:23]} 54. Ng2 {[%clk 0:00:42]}  Nc3 {[%clk 0:00:22]} 55. Nxc3 {[%clk 0:00:40]}  Bxc3 {[%clk 0:00:21]} 56. d5 {[%clk 0:00:36]}  Kf5 {[%clk 0:00:21]} 57. d6 {[%clk 0:00:33]}  Ke6 {[%clk 0:00:20]} 58. Nf4+ {[%clk 0:00:33]}  Kd7 {[%clk 0:00:20]} 59. Nd5 {[%clk 0:00:31]}  Be5 {[%clk 0:00:20]} 60. Nb6+ {[%clk 0:00:26]}  Ke6 {[%clk 0:00:20]} 61. Nc8 {[%clk 0:00:13]}  Bd7 {[%clk 0:00:19]} 62. Ne7 {[%clk 0:00:07]}  Bxd6 {[%clk 0:00:19]} 63. Bxd6 {[%clk 0:00:08]}  Kxd6 {[%clk 0:00:19]} 64. Ng6 {[%clk 0:00:08]}  Ke6 {[%clk 0:00:19]} 65. Nf4+ {[%clk 0:00:09]}  Kf5 {[%clk 0:00:20]} 66. Ke3 {[%clk 0:00:10]}  Bc6 {[%clk 0:00:20]} 67. Ne2 {[%clk 0:00:09]}  Bf3 {[%clk 0:00:21]} 68. Nf4 {[%clk 0:00:10]}  Ke5 {[%clk 0:00:21]} 69. Ng6+ {[%clk 0:00:09]}  Kf5 {[%clk 0:00:21]} 70. Nf4 {[%clk 0:00:10]}  Ke5 {[%clk 0:00:22]} 71. Ng6+ {[%clk 0:00:11]}  Kf5 {[%clk 0:00:22]} 72. Nf4 {[%clk 0:00:11]} 1/2-1/2


[Site "https://www.chess.com"]

[Event "Titled Tuesday Blitz January 03 Early 2023"]
[White "Topalov, Aleksandar"]
[Black "Fabris, Alberto"]
[WhiteFideId "925659"]
[BlackFideId "801348"]
[WhiteElo "2233"]
[BlackElo "2230"]
[Result "1-0"]
[Round "07"]
[TimeControl "180+2"]
[Date "2023.01.03"]
[WhiteClock "0:00:06"]
[BlackClock "0:00:10"]

1. b3 {[%clk 0:02:40]}  e5 {[%clk 0:02:59]} 2. Bb2 {[%clk 0:02:40]}  Nc6 {[%clk 0:02:59]} 3. c4 {[%clk 0:02:40]}  Nf6 {[%clk 0:02:57]} 4. e3 {[%clk 0:02:39]}  d5 {[%clk 0:02:55]} 5. cxd5 {[%clk 0:02:39]}  Nxd5 {[%clk 0:02:55]} 6. a3 {[%clk 0:02:39]}  Bd6 {[%clk 0:02:52]} 7. Qc2 {[%clk 0:02:39]}  O-O {[%clk 0:02:50]} 8. Nf3 {[%clk 0:02:39]}  Re8 {[%clk 0:02:47]} 9. d3 {[%clk 0:02:39]}  Bg4 {[%clk 0:02:44]} 10. Nbd2 {[%clk 0:02:39]}  Qe7 {[%clk 0:02:38]} 11. g3 {[%clk 0:02:34]}  Rad8 {[%clk 0:02:23]} 12. Bg2 {[%clk 0:02:34]}  Ndb4 {[%clk 0:02:16]} 13. axb4 {[%clk 0:02:31]}  Nxb4 {[%clk 0:02:16]} 14. Qc3 {[%clk 0:02:26]}  Bc5 {[%clk 0:02:14]} 15. O-O {[%clk 0:02:11]}  Nxd3 {[%clk 0:02:08]} 16. Nc4 {[%clk 0:01:58]}  f6 {[%clk 0:01:53]} 17. h3 {[%clk 0:01:45]}  Bh5 {[%clk 0:01:52]} 18. g4 {[%clk 0:01:40]}  Bg6 {[%clk 0:01:51]} 19. Nh4 {[%clk 0:01:39]}  Bb4 {[%clk 0:01:39]} 20. Nxg6 {[%clk 0:01:38]}  hxg6 {[%clk 0:01:40]} 21. Qc2 {[%clk 0:01:37]}  Qc5 {[%clk 0:01:24]} 22. Be4 {[%clk 0:01:27]}  Nxb2 {[%clk 0:01:18]} 23. Qxb2 {[%clk 0:01:27]}  b5 {[%clk 0:01:14]} 24. Na5 {[%clk 0:01:13]}  Bc3 {[%clk 0:01:10]} 25. Qc1 {[%clk 0:01:07]}  Qb4 {[%clk 0:01:03]} 26. Nc6 {[%clk 0:01:06]}  Qxe4 {[%clk 0:01:02]} 27. Qxc3 {[%clk 0:01:06]}  Rd6 {[%clk 0:00:52]} 28. Nxa7 {[%clk 0:00:58]}  Qf3 {[%clk 0:00:51]} 29. Kh2 {[%clk 0:00:45]}  f5 {[%clk 0:00:44]} 30. Nxb5 {[%clk 0:00:39]}  fxg4 {[%clk 0:00:41]} 31. Qc4+ {[%clk 0:00:35]}  Kf8 {[%clk 0:00:18]} 32. Qxg4 {[%clk 0:00:32]}  Qxg4 {[%clk 0:00:17]} 33. hxg4 {[%clk 0:00:31]}  Rb6 {[%clk 0:00:16]} 34. Nxc7 {[%clk 0:00:29]}  Rc8 {[%clk 0:00:17]} 35. Rac1 {[%clk 0:00:25]}  Kf7 {[%clk 0:00:16]} 36. Nd5 {[%clk 0:00:20]}  Rh8+ {[%clk 0:00:14]} 37. Kg2 {[%clk 0:00:18]}  Rxb3 {[%clk 0:00:15]} 38. Rc7+ {[%clk 0:00:17]}  Ke6 {[%clk 0:00:15]} 39. e4 {[%clk 0:00:14]}  Rg8 {[%clk 0:00:14]} 40. Re7+ {[%clk 0:00:12]}  Kd6 {[%clk 0:00:14]} 41. Rd1 {[%clk 0:00:10]}  Kc5 {[%clk 0:00:14]} 42. Rc7+ {[%clk 0:00:09]}  Kb5 {[%clk 0:00:12]} 43. Rb7+ {[%clk 0:00:09]}  Kc4 {[%clk 0:00:11]} 44. Rc1+ {[%clk 0:00:08]}  Kd4 {[%clk 0:00:11]} 45. Rxb3 {[%clk 0:00:08]}  Kxe4 {[%clk 0:00:11]} 46. Ne7 {[%clk 0:00:07]}  Re8 {[%clk 0:00:10]} 47. Rc4# {[%clk 0:00:06]} 1-0


[Site "https://www.chess.com"]

[Event "Titled Tuesday Blitz January 03 Early 2023"]
[White "Cardozo Munar, Carlos Eduardo"]
[Black "aidenzhouu"]
[WhiteFideId "4409477"]
[WhiteElo "2043"]
[BlackElo "2382"]
[Result "0-1"]
[Round "07"]
[TimeControl "180+2"]
[Date "2023.01.03"]
[WhiteClock "0:00:41"]
[BlackClock "0:00:34"]

1. e4 {[%clk 0:02:58]}  c6 {[%clk 0:02:57]} 2. d4 {[%clk 0:02:50]}  d5 {[%clk 0:02:57]} 3. exd5 {[%clk 0:02:50]}  cxd5 {[%clk 0:02:57]} 4. Bd3 {[%clk 0:02:50]}  Nf6 {[%clk 0:02:58]} 5. c3 {[%clk 0:02:51]}  g6 {[%clk 0:02:59]} 6. Bg5 {[%clk 0:02:51]}  Bg7 {[%clk 0:02:58]} 7. Nd2 {[%clk 0:02:51]}  Nc6 {[%clk 0:02:57]} 8. Qb3 {[%clk 0:02:52]}  O-O {[%clk 0:02:56]} 9. Ngf3 {[%clk 0:02:52]}  Qc7 {[%clk 0:02:53]} 10. h3 {[%clk 0:02:50]}  Bf5 {[%clk 0:02:53]} 11. Bxf5 {[%clk 0:02:49]}  gxf5 {[%clk 0:02:54]} 12. O-O {[%clk 0:02:47]}  Ne4 {[%clk 0:02:52]} 13. Qxd5 {[%clk 0:02:45]}  e6 {[%clk 0:02:47]} 14. Qc4 {[%clk 0:02:39]}  Nxg5 {[%clk 0:02:31]} 15. Nxg5 {[%clk 0:02:40]}  Qf4 {[%clk 0:02:32]} 16. Ngf3 {[%clk 0:02:37]}  Rac8 {[%clk 0:02:28]} 17. Qe2 {[%clk 0:02:31]}  Bh6 {[%clk 0:02:27]} 18. Rfe1 {[%clk 0:02:29]}  Qd6 {[%clk 0:02:19]} 19. Nf1 {[%clk 0:02:28]}  Kh8 {[%clk 0:02:07]} 20. Ne5 {[%clk 0:02:28]}  Ne7 {[%clk 0:02:01]} 21. Rad1 {[%clk 0:02:28]}  Nd5 {[%clk 0:02:02]} 22. Qh5 {[%clk 0:02:22]}  Kg7 {[%clk 0:01:53]} 23. Rd3 {[%clk 0:02:19]}  Bf4 {[%clk 0:01:38]} 24. Rf3 {[%clk 0:02:10]}  b5 {[%clk 0:01:26]} 25. h4 {[%clk 0:02:09]}  Nf6 {[%clk 0:01:20]} 26. Qg5+ {[%clk 0:01:21]}  Bxg5 {[%clk 0:01:19]} 27. hxg5 {[%clk 0:01:22]}  Nd7 {[%clk 0:01:08]} 28. Nd3 {[%clk 0:01:19]}  a5 {[%clk 0:01:05]} 29. Ne3 {[%clk 0:01:19]}  b4 {[%clk 0:01:02]} 30. Rxf5 {[%clk 0:01:19]}  bxc3 {[%clk 0:00:57]} 31. Rxa5 {[%clk 0:01:16]}  Qxd4 {[%clk 0:00:49]} 32. Rd5 {[%clk 0:01:01]}  Qxd5 {[%clk 0:00:45]} 33. Nxd5 {[%clk 0:00:59]}  exd5 {[%clk 0:00:46]} 34. bxc3 {[%clk 0:01:00]}  Rxc3 {[%clk 0:00:46]} 35. Nf4 {[%clk 0:01:00]}  d4 {[%clk 0:00:41]} 36. Re7 {[%clk 0:00:58]}  Nc5 {[%clk 0:00:41]} 37. Rc7 {[%clk 0:00:57]}  d3 {[%clk 0:00:35]} 38. Nxd3 {[%clk 0:00:51]}  Rxd3 {[%clk 0:00:35]} 39. Rxc5 {[%clk 0:00:51]}  Ra8 {[%clk 0:00:36]} 40. Rc2 {[%clk 0:00:50]}  Rda3 {[%clk 0:00:36]} 41. f4 {[%clk 0:00:49]}  Rxa2 {[%clk 0:00:37]} 42. Rc7 {[%clk 0:00:48]}  R2a5 {[%clk 0:00:35]} 43. Kh2 {[%clk 0:00:47]}  Rf5 {[%clk 0:00:35]} 44. g3 {[%clk 0:00:47]}  Kg6 {[%clk 0:00:31]} 45. Kh3 {[%clk 0:00:47]}  Rfa5 {[%clk 0:00:27]} 46. Kg4 {[%clk 0:00:47]}  Ra4 {[%clk 0:00:23]} 47. Rc6+ {[%clk 0:00:47]}  Kg7 {[%clk 0:00:23]} 48. Rc7 {[%clk 0:00:46]}  R8a7 {[%clk 0:00:23]} 49. Rc6 {[%clk 0:00:47]}  R4a6 {[%clk 0:00:23]} 50. Rc5 {[%clk 0:00:47]}  Rd7 {[%clk 0:00:21]} 51. Kh5 {[%clk 0:00:47]}  Rd3 {[%clk 0:00:21]} 52. Kg4 {[%clk 0:00:46]}  Raa3 {[%clk 0:00:21]} 53. Rc7 {[%clk 0:00:45]}  Rxg3+ {[%clk 0:00:22]} 54. Kh4 {[%clk 0:00:45]}  Rh3+ {[%clk 0:00:21]} 55. Kg4 {[%clk 0:00:45]}  h5+ {[%clk 0:00:20]} 56. gxh6+ {[%clk 0:00:44]}  Rxh6 {[%clk 0:00:20]} 57. Kf5 {[%clk 0:00:44]}  Rf6+ {[%clk 0:00:21]} 58. Kg5 {[%clk 0:00:45]}  Ra5+ {[%clk 0:00:21]} 59. Kg4 {[%clk 0:00:45]}  Raf5 {[%clk 0:00:22]} 60. Rc4 {[%clk 0:00:45]}  Kg6 {[%clk 0:00:22]} 61. Ra4 {[%clk 0:00:45]}  Rxf4+ {[%clk 0:00:22]} 62. Rxf4 {[%clk 0:00:45]}  Rxf4+ {[%clk 0:00:23]} 63. Kxf4 {[%clk 0:00:45]}  Kf6 {[%clk 0:00:24]} 64. Kg4 {[%clk 0:00:46]}  Ke5 {[%clk 0:00:24]} 65. Kg3 {[%clk 0:00:31]}  Ke4 {[%clk 0:00:24]} 66. Kg4 {[%clk 0:00:31]}  f5+ {[%clk 0:00:23]} 67. Kg3 {[%clk 0:00:32]}  Ke3 {[%clk 0:00:24]} 68. Kg2 {[%clk 0:00:32]}  f4 {[%clk 0:00:24]} 69. Kf1 {[%clk 0:00:32]}  Kf3 {[%clk 0:00:24]} 70. Ke1 {[%clk 0:00:31]}  Kg2 {[%clk 0:00:25]} 71. Ke2 {[%clk 0:00:32]}  f3+ {[%clk 0:00:26]} 72. Kd3 {[%clk 0:00:32]}  f2 {[%clk 0:00:27]} 73. Ke4 {[%clk 0:00:33]}  f1=Q {[%clk 0:00:28]} 74. Kd4 {[%clk 0:00:33]}  Qe2 {[%clk 0:00:28]} 75. Kd5 {[%clk 0:00:34]}  Qe3 {[%clk 0:00:28]} 76. Kd6 {[%clk 0:00:35]}  Qe4 {[%clk 0:00:28]} 77. Kc5 {[%clk 0:00:35]}  Qd3 {[%clk 0:00:29]} 78. Kc6 {[%clk 0:00:36]}  Qd4 {[%clk 0:00:29]} 79. Kb5 {[%clk 0:00:36]}  Qc3 {[%clk 0:00:29]} 80. Kb6 {[%clk 0:00:37]}  Qc4 {[%clk 0:00:29]} 81. Ka5 {[%clk 0:00:37]}  Qb3 {[%clk 0:00:30]} 82. Ka6 {[%clk 0:00:38]}  Kf3 {[%clk 0:00:31]} 83. Ka7 {[%clk 0:00:39]}  Ke4 {[%clk 0:00:31]} 84. Ka6 {[%clk 0:00:40]}  Kd5 {[%clk 0:00:32]} 85. Ka5 {[%clk 0:00:40]}  Kc6 {[%clk 0:00:33]} 86. Ka6 {[%clk 0:00:41]}  Qb6# {[%clk 0:00:34]} 0-1


[Site "https://www.chess.com"]

[Event "Titled Tuesday Blitz January 03 Early 2023"]
[White "Mohammadian, Mohammad"]
[Black "Melikhov, Evgeny V."]
[WhiteFideId "12566055"]
[BlackFideId "4122046"]
[WhiteElo "1398"]
[BlackElo "2269"]
[Result "0-1"]
[Round "07"]
[TimeControl "180+2"]
[Date "2023.01.03"]
[WhiteClock "0:00:03"]
[BlackClock "0:00:48"]

1. e4 {[%clk 0:02:49]}  c5 {[%clk 0:02:59]} 2. Nf3 {[%clk 0:02:48]}  d6 {[%clk 0:02:59]} 3. d4 {[%clk 0:02:48]}  cxd4 {[%clk 0:02:59]} 4. Ne5 {[%clk 0:02:47]}  dxe5 {[%clk 0:02:56]} 5. f4 {[%clk 0:02:45]}  Nc6 {[%clk 0:02:48]} 6. fxe5 {[%clk 0:02:42]}  Nxe5 {[%clk 0:02:41]} 7. Bf4 {[%clk 0:02:41]}  Nc6 {[%clk 0:02:39]} 8. Bd3 {[%clk 0:02:39]}  e5 {[%clk 0:02:39]} 9. Bg3 {[%clk 0:02:38]}  Nf6 {[%clk 0:02:27]} 10. a3 {[%clk 0:02:38]}  Ng4 {[%clk 0:02:21]} 11. Qe2 {[%clk 0:02:10]}  Ne3 {[%clk 0:02:20]} 12. Rg1 {[%clk 0:02:04]}  Be7 {[%clk 0:02:15]} 13. Nd2 {[%clk 0:02:03]}  O-O {[%clk 0:02:13]} 14. Nf3 {[%clk 0:02:03]}  Qa5+ {[%clk 0:02:05]} 15. Qd2 {[%clk 0:01:54]}  Qxd2+ {[%clk 0:02:03]} 16. Kxd2 {[%clk 0:01:53]}  f6 {[%clk 0:02:00]} 17. b4 {[%clk 0:01:45]}  a6 {[%clk 0:01:57]} 18. Rac1 {[%clk 0:01:37]}  Bg4 {[%clk 0:01:56]} 19. c4 {[%clk 0:01:34]}  Nxg2 {[%clk 0:01:52]} 20. Rxg2 {[%clk 0:01:33]}  Bxf3 {[%clk 0:01:51]} 21. Rf2 {[%clk 0:01:33]}  Bg4 {[%clk 0:01:46]} 22. c5 {[%clk 0:01:31]}  Be6 {[%clk 0:01:45]} 23. Rcf1 {[%clk 0:01:27]}  Rfc8 {[%clk 0:01:43]} 24. h4 {[%clk 0:01:18]}  a5 {[%clk 0:01:40]} 25. b5 {[%clk 0:01:16]}  Nd8 {[%clk 0:01:40]} 26. c6 {[%clk 0:01:10]}  bxc6 {[%clk 0:01:39]} 27. bxc6 {[%clk 0:01:10]}  Rxc6 {[%clk 0:01:32]} 28. Bb5 {[%clk 0:01:08]}  Rb6 {[%clk 0:01:29]} 29. a4 {[%clk 0:01:08]}  Rc8 {[%clk 0:01:26]} 30. h5 {[%clk 0:01:02]}  h6 {[%clk 0:01:26]} 31. Bh4 {[%clk 0:00:57]}  Nf7 {[%clk 0:01:25]} 32. Rg2 {[%clk 0:00:42]}  Ng5 {[%clk 0:01:18]} 33. Bxg5 {[%clk 0:00:41]}  hxg5 {[%clk 0:01:18]} 34. Rh2 {[%clk 0:00:36]}  Kh7 {[%clk 0:01:15]} 35. Rfh1 {[%clk 0:00:29]}  Bb4+ {[%clk 0:01:14]} 36. Kd1 {[%clk 0:00:26]}  Bb3+ {[%clk 0:01:12]} 37. Ke2 {[%clk 0:00:19]}  Bc4+ {[%clk 0:01:06]} 38. Bxc4 {[%clk 0:00:17]}  Rxc4 {[%clk 0:01:06]} 39. h6 {[%clk 0:00:18]}  g6 {[%clk 0:01:06]} 40. Kd3 {[%clk 0:00:09]}  Rc3+ {[%clk 0:01:05]} 41. Ke2 {[%clk 0:00:08]}  Rc2+ {[%clk 0:01:04]} 42. Kf3 {[%clk 0:00:08]}  Rbc6 {[%clk 0:01:01]} 43. Kg4 {[%clk 0:00:07]}  Rxh2 {[%clk 0:00:51]} 44. Rxh2 {[%clk 0:00:06]}  d3 {[%clk 0:00:51]} 45. Rf2 {[%clk 0:00:05]}  d2 {[%clk 0:00:50]} 46. Rf1 {[%clk 0:00:03]}  Rc1 {[%clk 0:00:48]} 0-1


[Site "https://www.chess.com"]

[Event "Titled Tuesday Blitz January 03 Early 2023"]
[White "Aung Thant Zin"]
[Black "Silva Lucena, Cristian"]
[WhiteFideId "13000063"]
[BlackFideId "2232588"]
[WhiteElo "2268"]
[BlackElo "2285"]
[Result "1-0"]
[Round "07"]
[TimeControl "180+2"]
[Date "2023.01.03"]
[WhiteClock "0:01:28"]
[BlackClock "0:01:25"]

1. e4 {[%clk 0:02:58]}  c5 {[%clk 0:02:54]} 2. Nf3 {[%clk 0:02:58]}  d6 {[%clk 0:02:53]} 3. d4 {[%clk 0:02:58]}  cxd4 {[%clk 0:02:54]} 4. Nxd4 {[%clk 0:02:58]}  Nf6 {[%clk 0:02:51]} 5. Nc3 {[%clk 0:02:59]}  a6 {[%clk 0:02:50]} 6. g3 {[%clk 0:02:59]}  e6 {[%clk 0:02:49]} 7. Bg2 {[%clk 0:03:00]}  Be7 {[%clk 0:02:50]} 8. O-O {[%clk 0:03:00]}  O-O {[%clk 0:02:51]} 9. Re1 {[%clk 0:02:43]}  Nc6 {[%clk 0:02:50]} 10. Be3 {[%clk 0:02:40]}  Bd7 {[%clk 0:02:47]} 11. Qd2 {[%clk 0:02:39]}  Ne5 {[%clk 0:02:46]} 12. b3 {[%clk 0:02:31]}  Rc8 {[%clk 0:02:47]} 13. Rac1 {[%clk 0:02:29]}  d5 {[%clk 0:02:42]} 14. exd5 {[%clk 0:02:26]}  Bb4 {[%clk 0:02:43]} 15. Nde2 {[%clk 0:02:25]}  exd5 {[%clk 0:02:41]} 16. Bd4 {[%clk 0:02:15]}  Re8 {[%clk 0:02:34]} 17. Nf4 {[%clk 0:02:13]}  Ne4 {[%clk 0:02:25]} 18. Bxe4 {[%clk 0:02:09]}  dxe4 {[%clk 0:02:26]} 19. Bxe5 {[%clk 0:01:43]}  Rxe5 {[%clk 0:02:16]} 20. Red1 {[%clk 0:01:33]}  Re7 {[%clk 0:01:35]} 21. Nfd5 {[%clk 0:01:32]}  Bxc3 {[%clk 0:01:27]} 22. Nxe7+ {[%clk 0:01:29]}  Qxe7 {[%clk 0:01:25]} 23. Qxd7 {[%clk 0:01:28]} 1-0


[Site "https://www.chess.com"]